Workbook

Sheet 원가 (안전관리비 자동계산)
A1: 공 사 원 가 계 산 서
A2: 공사명: | C2: OO중 외벽개선, 창호교체 공사건 (합계)
A3: 적용기준 : | C3: 2017 상반기 | D3: 적용기준: 5억미만, 6개월이하 자료임, 그이상 자료는 교육시설과 일위대가표 참조 170608 | L3: 분리
A4: 구 분 | D4: 금 액 | E4: 사용여부 | F4: 비 고 | L4: 창호 | M4: 외벽
A5: 비 목
A6: 순 공 사 원 가 | B6: 재료비 | C6: 직 접 재 료 비 | D6: =L6+M6 -> 25813654 | L6: 5076270 | M6: 20737384 | N6: =D6-L6-M6 -> 0
C7: 작 업 부 산 물 | N7: =D7-L7-M7 -> 0
C8: 소 계 (A) | D8: =D6-D7 -> 25813654 | L8: =L6-L7 -> 5076270 | M8: =M6-M7 -> 20737384 | N8: 0
B9: 노무비 | C9: 직접노무비 (가) | D9: =L9+M9 -> 5809546 | L9: 2717865 | M9: 3091681 | N9: 0
C10: 간 접 노 무 비 | D10: =INT(D9*H10) -> 563525 | F10: (가) | G10: × | H10: =I10 -> 0.097 | I10: =VLOOKUP(C3,적용기준!A:N,2,FALSE) -> 0.097 | J10: =IF(H10=I10,"정상","수정") -> 정상 | L10: =INT(L9*$H$10) -> 263632 | M10: =INT(M9*$H$10) -> 299893 | N10: 0
C11: 소 계 (B) | D11: =SUM(D9:D10) -> 6373071 | L11: =SUM(L9:L10) -> 2981497 | M11: =SUM(M9:M10) -> 3391574 | N11: 0
B12: 경비 | C12: 기 계 경 비 | D12: =L12+M12 -> 17935 | L12: 7576 | M12: 10359 | N12: 0
C13: 산 출 경 비 | N13: 0
C14: 산 재 보 험 료 | D14: =IF(E14="적용",INT(D11*H14),0) -> 248549 | E14: 적용 | F14: (B) | G14: × | H14: =I14 -> 0.039 | I14: =VLOOKUP(C3,적용기준!A:N,5,FALSE) -> 0.039 | J14: =IF(H14=I14,"정상","수정") -> 정상 | L14: =IF($E$14="적용",INT(L11*$H$14),0) -> 116278 | M14: =IF($E$14="적용",INT(M11*$H$14),0) -> 132271 | N14: 0
C15: 고 용 보 험 | D15: =IF(E15="적용",INT(D11*H15),0) -> 55445 | E15: 적용 | F15: (B) | G15: × | H15: =I15 -> 0.0087 | I15: =VLOOKUP(C3,적용기준!A:N,7,FALSE) -> 0.0087 | J15: =IF(H15=I15,"정상","수정") -> 정상 | L15: =IF($E$15="적용",INT(L11*$H$15),0) -> 25939 | M15: =IF($E$15="적용",INT(M11*$H$15),0) -> 29506 | N15: 0
C16: 안전관리비(비율) | D16: =IF(D35<40000000,0,+(D8+D9)*H16) -> 926559.76 | E16: =IF(D35<40000000,"미적용","적용") -> 적용 | F16: (A+가+관급/1.1) | G16: × | H16: =I16 -> 0.0293 | I16: =VLOOKUP(C3,적용기준!A:N,4,FALSE) -> 0.0293 | J16: =IF(H16=I16,"정상","수정") -> 정상 | L16: =IF(L35<40000000,0,+(L8+L9)*$H$16) -> 0 | M16: =IF(M35<40000000,0,+(M8+M9)*$H$16) -> 0 | N16: 926559.76
C17: 안전관리비기본경비 | N17: 0
C18: 퇴직공제부금비 | D18: =IF(D35<300000000,0,INT(D9*H18)) -> 0 | E18: =IF(D35<300000000,"미적용","적용") -> 미적용 | F18: (가) | G18: × | H18: =I18 -> 0.023 | I18: =VLOOKUP(C3,적용기준!A:N,6,FALSE) -> 0.023 | J18: =IF(H18=I18,"정상","수정") -> 정상 | L18: =IF(L35<300000000,0,INT(L9*$H$18)) -> 0 | M18: =IF(M35<300000000,0,INT(M9*$H$18)) -> 0 | N18: 0
C19: 환 경 보 전 비 | D19: =IF(E19="적용",INT((D8+D9+D12)*H19),0) -> 158205 | E19: 적용 | F19: (A+가+기계경비) | G19: × | H19: 0.005 | I19: =VLOOKUP(C3,적용기준!A:N,11,FALSE) -> 0.005 | J19: 정상 | K19: 전기,통신,소방 제외 | L19: =IF($E$19="적용",INT((L8+L9+L12)*$H$19),0) -> 39008 | M19: =IF($E$19="적용",INT((M8+M9+M12)*$H$19),0) -> 119197 | N19: 0
C20: 건 강 보 험 료 | D20: =IF(E20="적용",INT(D9*H20),0) -> 98762 | E20: 적용 | F20: (가) | G20: × | H20: 0.017 | I20: =VLOOKUP(C3,적용기준!A:N,9,FALSE) -> 0.017 | J20: 정상 | K20: 1개월이상 공사 해당 | L20: =IF($E$20="적용",INT(L9*$H$20),0) -> 46203 | M20: =IF($E$20="적용",INT(M9*$H$20),0) -> 52558 | N20: 1
C21: 노인장기요양보험료 | D21: =+D20*H21 -> 6468.911 | F21: (건강보험료) | G21: × | H21: =I21 -> 0.0655 | I21: =VLOOKUP(C3,적용기준!A:N,10,FALSE) -> 0.0655 | J21: 정상 | L21: =+L20*$H$21 -> 3026.2965 | M21: =+M20*$H$21 -> 3442.549 | N21: 0.0655
C22: 연 금 보 험 료 | D22: =IF(E22="적용",INT(D9*H22),0) -> 144657 | E22: 적용 | F22: (가) | G22: × | H22: 0.0249 | I22: =VLOOKUP(C3,적용기준!A:N,8,FALSE) -> 0.0249 | J22: 정상 | L22: =IF($E$22="적용",INT(L9*$H$22),0) -> 67674 | M22: =IF($E$22="적용",INT(M9*$H$22),0) -> 76982 | N22: 1
C23: 기 타 경 비 | D23: =INT((D8+D11)*H23) -> 1544962 | F23: (A+B) | G23: × | H23: 0.048 | I23: =VLOOKUP(C3,적용기준!A:N,3,FALSE) -> 0.048 | J23: 정상 | L23: =INT((L8+L11)*$H$23) -> 386772 | M23: =INT((M8+M11)*$H$23) -> 1158189 | N23: 1
C24: 하도급지급보증수수료 | D24: =IF(E24="적용",INT((D8+D9+D12)*H24),0) -> 25629 | E24: 적용 | F24: (A+가+기계경비) | G24: × | H24: 0.00081 | I24: =VLOOKUP(C3,적용기준!A:N,12,FALSE) -> 0.00081 | J24: 정상 | L24: =IF($E$24="적용",INT((L8+L9+L12)*$H$24),0) -> 6319 | M24: =IF($E$24="적용",INT((M8+M9+M12)*$H$24),0) -> 19309 | N24: 1
C25: 건설기계대여금 지급보증서발급수수료 | D25: =IF(E25="적용",INT((D8+D9+D12)*H25),0) -> 22148 | E25: 적용 | F25: (A+가+기계경비) | G25: × | H25: 0.0007 | I25: =VLOOKUP(C3,적용기준!A:O,15,FALSE) -> 0.0007 | J25: 정상 | L25: =IF($E$25="적용",INT((L8+L9+L12)*$H$25),0) -> 5461 | M25: =IF($E$25="적용",INT((M8+M9+M12)*$H$25),0) -> 16687 | N25: 0
C26: 소 계 (C) | D26: =D28+D16+D18 -> 3249320.671 | L26: =L28+L16+L18 -> 704256.2965 | M26: =M28+M16+M18 -> 1618500.549 | N26: 926563.8255
B27: 합 계 | D27: =D8+D11+D26 -> 35436045.67 | L27: =L8+L11+L26 -> 8762023.296 | M27: =M8+M11+M26 -> 25747458.55 | N27: 926563.8255
C28: 소 계 (C) | D28: =SUM(D12:D15)+SUM(D19:D25)+D17 -> 2322760.911 | K28: 안전관리비 대상 판단 | L28: =SUM(L12:L15)+SUM(L19:L25)+L17 -> 704256.2965 | M28: =SUM(M12:M15)+SUM(M19:M25)+M17 -> 1618500.549 | N28: 4.0655
B29: 합 계 | D29: =+D8+D11+D28 -> 34509485.91 | L29: =+L8+L11+L28 -> 8762023.296 | M29: =+M8+M11+M28 -> 25747458.55 | N29: 4.065500002
A30: 일 반 관 리 비 (D) | D30: =INT(D29*H36) -> 2070569 | L30: =INT(L29*$H$36) -> 525721 | M30: =INT(M29*$H$36) -> 1544847 | N30: 1
A31: 이 윤 (E) | D31: =(D11+D28+D30)*H37 -> 1614960.137 | L31: =(L11+L28+L30)*$H$37 -> 631721.1445 | M31: =(M11+M28+M30)*$H$37 -> 983238.2324 | N31: 0.759825
A32: 폐 기 물 처 리 비 | D32: =D38 -> 343861 | L32: =L38 -> 308337 | M32: =M38 -> 35524 | N32: 0
A33: 총 원 가 | D33: =D29+D30+D31+D32 -> 38538876.05 | L33: =L29+L30+L31+L32 -> 10227802.44 | M33: =M29+M30+M31+M32 -> 28311067.78 | N33: 5.825325005
A34: 부 가 세 | D34: =INT(D33*10%) -> 3853887 | L34: =INT(L33*10%) -> 1022780 | M34: =INT(M33*10%) -> 2831106 | N34: 1
A35: 합 계 | D35: =ROUNDDOWN(SUM(D33:D34),-1) -> 42392760 | L35: =ROUNDDOWN(SUM(L33:L34),-1) -> 11250580 | M35: =ROUNDDOWN(SUM(M33:M34),-1) -> 31142170 | N35: 10
A36: 일 반 관 리 비 (D) | D36: =INT(D27*H36) -> 2126162 | F36: (A+B+C) | G36: × | H36: =I36 -> 0.06 | I36: =VLOOKUP(C3,적용기준!A:N,13,FALSE) -> 0.06 | J36: =IF(H36=I36,"정상","수정") -> 정상 | L36: =INT(L27*$H$36) -> 525721 | M36: =INT(M27*$H$36) -> 1544847 | N36: 55594
A37: 이 윤 (E) | D37: =(D11+D26+D36)*H37 -> 1762283.051 | F37: (B+C+D) | G37: × | H37: =I37 -> 0.15 | I37: =VLOOKUP(C3,적용기준!A:N,14,FALSE) -> 0.15 | J37: =IF(H37=I37,"정상","수정") -> 정상 | L37: =(L11+L26+L36)*$H$37 -> 631721.1445 | M37: =(M11+M26+M36)*$H$37 -> 983238.2324 | N37: 147323.6738
A38: 폐 기 물 처 리 비 | D38: =L38+M38 -> 343861 | L38: 308337 | M38: 35524 | N38: 0
A39: 총 원 가 | D39: =D27+D36+D37+D38 -> 39668351.72 | L39: =L27+L36+L37+L38 -> 10227802.44 | M39: =M27+M36+M37+M38 -> 28311067.78 | N39: 1129481.499
A40: 부 가 세 | D40: =INT(D39*10%) -> 3966835 | F40: 총원가 | G40: × | H40: 0.1 | L40: =INT(L39*10%) -> 1022780 | M40: =INT(M39*10%) -> 2831106 | N40: 112949
A41: 관 급 자 재 | D41: =L41+M41 -> 1670790 | L41: 1549360 | M41: =121430 -> 121430
A42: 도 급 액 | D42: =ROUNDDOWN(SUM(D39:D40),-1) -> 43635180 | E42: 0.87745 | F42: =ROUNDDOWN(D42*E42,-1) -> 38287680 | L42: =ROUNDDOWN(SUM(L39:L40),-1) -> 11250580 | M42: =ROUNDDOWN(SUM(M39:M40),-1) -> 31142170 | N42: 1242430

Sheet 원가
A1: 공 사 원 가 계 산 서
A2: 공사명: | C2: ='원가 (안전관리비 자동계산)'!C2:H2 -> OO중 외벽개선, 창호교체 공사건 (합계)
A3: 적용기준 : | C3: 2017 상반기 | D3: ='원가 (안전관리비 자동계산)'!D3 -> 적용기준: 5억미만, 6개월이하 자료임, 그이상 자료는 교육시설과 일위대가표 참조 170608
A4: 구 분 | D4: 금 액 | E4: 사용여부 | F4: 비 고
A5: 비 목
A6: 순 공 사 원 가 | B6: 재료비 | C6: 직 접 재 료 비 | D6: 31389543
C7: 작 업 부 산 물 | D7: ='원가 (안전관리비 자동계산)'!D7 -> 0
C8: 소 계 (A) | D8: =D6-D7 -> 31389543
B9: 노무비 | C9: 직접노무비 (가) | D9: ='원가 (안전관리비 자동계산)'!D9 -> 5809546
C10: 간 접 노 무 비 | D10: =INT(D9*H10) -> 563525 | F10: (가) | G10: × | H10: =I10 -> 0.097 | I10: =VLOOKUP(C3,적용기준!A:N,2,FALSE) -> 0.097 | J10: =IF(H10=I10,"정상","수정") -> 정상
C11: 소 계 (B) | D11: =SUM(D9:D10) -> 6373071
B12: 경비 | C12: 기 계 경 비 | D12: ='원가 (안전관리비 자동계산)'!D12 -> 17935
C13: 산 출 경 비 | D13: ='원가 (안전관리비 자동계산)'!D13 -> 0
C14: 산 재 보 험 료 | D14: =IF(E14="적용",INT(D11*H14),0) -> 248549 | E14: 적용 | F14: (B) | G14: × | H14: =I14 -> 0.039 | I14: =VLOOKUP(C3,적용기준!A:N,5,FALSE) -> 0.039 | J14: =IF(H14=I14,"정상","수정") -> 정상
C15: 고 용 보 험 | D15: =IF(E15="적용",INT(D11*H15),0) -> 55445 | E15: 적용 | F15: (B) | G15: × | H15: =I15 -> 0.0087 | I15: =VLOOKUP(C3,적용기준!A:N,7,FALSE) -> 0.0087 | J15: =IF(H15=I15,"정상","수정") -> 정상
C16: 안전관리비(비율) | D16: =IF(E16="미적용",0,+(D8+D9)*H16) -> 1089933.308 | E16: 적용 | F16: (A+가) | G16: × | H16: =I16 -> 0.0293 | I16: =VLOOKUP(C3,적용기준!A:N,4,FALSE) -> 0.0293 | J16: =IF(H16=I16,"정상","수정") -> 정상 | K16: =IF(D33<40000000,"미적용대상","적용대상") -> 적용대상
C17: 안전관리비기본경비
C18: 퇴직공제부금비 | D18: =IF(E18="적용",INT(D9*H18),0) -> 0 | E18: 미적용 | F18: (가) | G18: × | H18: =I18 -> 0.023 | I18: =VLOOKUP(C3,적용기준!A:N,6,FALSE) -> 0.023 | J18: 정상 | K18: =IF(D33<300000000,"미적용대상","적용대상") -> 미적용대상
C19: 환 경 보 전 비 | D19: =IF(E19="적용",INT((D8+D9+D12)*H19),0) -> 0 | E19: 미적용 | F19: (A+가+기계경비) | G19: × | H19: 0.005 | I19: =VLOOKUP(C3,적용기준!A:N,11,FALSE) -> 0.005 | J19: 정상
C20: 건 강 보 험 료 | D20: =IF(E20="적용",INT(D9*H20),0) -> 98762 | E20: 적용 | F20: (가) | G20: × | H20: 0.017 | I20: =VLOOKUP(C3,적용기준!A:N,9,FALSE) -> 0.017 | J20: 정상 | K20: 1개월이상 공사 해당
C21: 노인장기요양보험료 | D21: =+D20*H21 -> 6468.911 | F21: (건강보험료) | G21: × | H21: =I21 -> 0.0655 | I21: =VLOOKUP(C3,적용기준!A:N,10,FALSE) -> 0.0655 | J21: =IF(H21=I21,"정상","수정") -> 정상
C22: 연 금 보 험 료 | D22: =IF(E22="적용",INT(D9*H22),0) -> 144657 | E22: 적용 | F22: (가) | G22: × | H22: 0.0249 | I22: =VLOOKUP(C3,적용기준!A:N,8,FALSE) -> 0.0249 | J22: 정상
C23: 기 타 경 비 | D23: =INT((D8+D11)*H23) -> 1812605 | F23: (A+B) | G23: × | H23: 0.048 | I23: =VLOOKUP(C3,적용기준!A:N,3,FALSE) -> 0.048 | J23: 정상
C24: 하도급지급보증수수료 | D24: =IF(E24="적용",INT((D8+D9+D12)*H24),0) -> 0 | E24: 미적용 | F24: (A+가+기계경비) | G24: × | H24: 0.00081 | I24: =VLOOKUP(C3,적용기준!A:N,12,FALSE) -> 0.00081 | J24: 정상
C25: 건설기계대여금 지급보증서발급수수료 | D25: =IF(E25="적용",INT((D8+D9+D12)*H25),0) -> 0 | E25: 미적용 | F25: (A+가+기계경비) | G25: × | H25: 0.0007 | I25: =VLOOKUP(C3,적용기준!A:O,15,FALSE) -> 0.0007 | J25: 정상
C26: 소 계 (C) | D26: =SUM(D12:D25) -> 3474355.219
B27: 합 계 | D27: =+D8+D11+D26 -> 41236969.22
A28: 일 반 관 리 비 (D) | D28: =INT(D27*H28) -> 2474218 | F28: (A+B+C) | G28: × | H28: =I28 -> 0.06 | I28: =VLOOKUP(C3,적용기준!A:N,13,FALSE) -> 0.06 | J28: 정상
A29: 이 윤 (E) | D29: =(D11+D26+D28)*H29 -> 1848246.633 | F29: (B+C+D) | G29: × | H29: =I29 -> 0.15 | I29: =VLOOKUP(C3,적용기준!A:N,14,FALSE) -> 0.15 | J29: 정상
A30: 폐 기 물 처 리 비 | D30: ='원가 (안전관리비 자동계산)'!D38 -> 343861
A31: 총 원 가 | D31: =D27+D28+D29+D30 -> 45903294.85
A32: 부 가 세 | D32: =INT(D31*10%) -> 4590329 | F32: 총원가 | G32: × | H32: 0.1
A33: 합 계 | D33: =ROUNDDOWN(SUM(D31:D32),-1) -> 50493620 | E33: 0.87745 | F33: =ROUNDDOWN(D33*E33,-3) -> 44305000

Sheet 적용기준
B1: =원가!D3 -> 적용기준: 5억미만, 6개월이하 자료임, 그이상 자료는 교육시설과 일위대가표 참조 170608
A2: 구분 | B2: 간접노무비 | C2: 기타경비 | D2: 안전보건관리비 | E2: 산재보험료 | F2: 근로자퇴직공제 | G2: 고용보험료 | H2: 국민연금보험료 | I2: 국민건강보험료 | J2: 노인장기요양보험 | K2: 환경보전비 | L2: 건설하도급대금지급보증서 발급수수료 | M2: 일반관리비 | N2: 이윤 | O2: 건설기계대여금 지급보증서발급수수료
D3: 4천만원 이상 | E3: 모든 건설공사 | F3: 3억원 이상 | G3: 모든 건설공사 | H3: 공사기간 1개월이상 모든 공사 | I3: 공사기간 1개월이상 모든 공사 | J3: 공사기간 1개월이상 모든 공사
B4: (직노)*율 | C4: (재+노)*율 | D4: (직재+직노+관급)*율 | E4: (노)*율 | F4: (직노*율) | G4: (노)*율 | H4: (직노)*율 | I4: (직노)*율 | J4: (건강보험료)*율 | K4: (재+직노+산경)*율 | L4: (재+직노+산경)*율 | M4: (재+노+경)*율 | N4: (노+경+일)*율 | O4: 국토교통부 고시 제2013-331호(2013.6.19)
A5: 2013 상반기 | B5: 0.095 | C5: 0.056 | D5: 0.0248 | E5: 0.037 | F5: 0.023 | G5: 0.0079 | H5: 0.0249 | I5: 0.017 | J5: 0.0655 | K5: 0.005 | L5: 0.0007 | M5: 0.06 | N5: 0.15
A6: 2013 하반기 | B6: 0.089 | C6: 0.054 | D6: 0.0248 | E6: 0.037 | F6: 0.023 | G6: 0.0079 | H6: 0.0249 | I6: 0.017 | J6: 0.0655 | K6: 0.005 | L6: 0.0007 | M6: 0.06 | N6: 0.15
A7: 2014 상반기 | B7: 0.089 | C7: 0.054 | D7: 0.0293 | E7: 0.038 | F7: 0.023 | G7: 0.0087 | H7: 0.0249 | I7: 0.017 | J7: 0.0655 | K7: 0.005 | L7: 0.00081 | M7: 0.06 | N7: 0.15
A8: 2014 하반기 | B8: 0.091 | C8: 0.051 | D8: 0.0293 | E8: 0.038 | F8: 0.023 | G8: 0.0087 | H8: 0.0249 | I8: 0.017 | J8: 0.0655 | K8: 0.005 | L8: 0.00081 | M8: 0.06 | N8: 0.15
A9: 2015 상반기 | B9: 0.091 | C9: 0.051 | D9: 0.0293 | E9: 0.038 | F9: 0.023 | G9: 0.0087 | H9: 0.0249 | I9: 0.017 | J9: 0.0655 | K9: 0.005 | L9: 0.00081 | M9: 0.06 | N9: 0.15
A10: 2015 하반기 | B10: 0.096 | C10: 0.052 | D10: 0.0293 | E10: 0.038 | F10: 0.023 | G10: 0.0087 | H10: 0.0249 | I10: 0.017 | J10: 0.0655 | K10: 0.005 | L10: 0.00081 | M10: 0.06 | N10: 0.15
A11: 2016 상반기 | B11: 0.096 | C11: 0.052 | D11: 0.0293 | E11: 0.038 | F11: 0.023 | G11: 0.0087 | H11: 0.0249 | I11: 0.017 | J11: 0.0655 | K11: 0.005 | L11: 0.00081 | M11: 0.06 | N11: 0.15 | O11: 0.0007
A12: 2016 하반기 | B12: 0.099 | C12: 0.05 | D12: 0.0293 | E12: 0.038 | F12: 0.023 | G12: 0.0087 | H12: 0.0249 | I12: 0.017 | J12: 0.0655 | K12: 0.005 | L12: 0.00081 | M12: 0.06 | N12: 0.15
A13: 2017 상반기 | B13: 0.097 | C13: 0.048 | D13: 0.0293 | E13: 0.039 | F13: 0.023 | G13: 0.0087 | H13: 0.0249 | I13: 0.017 | J13: 0.0655 | K13: 0.005 | L13: 0.00081 | M13: 0.06 | N13: 0.15 | O13: 0.0007
